bitfinex/quotes_BTCUSD_20240623
["timestamp","ask_amount","ask_price","bid_price","bid_amount"]
[1719156002098,4.13795979,64249.0,64248.0,0.54027952]
[1719156002448,4.13795979,64249.0,64248.0,0.52627952]
[1719156002795,4.13795979,64249.0,64248.0,0.51227952]
[1719156002796,3.91795979,64249.0,64248.0,0.51227952]
[1719156003198,4.13795979,64249.0,64248.0,0.52627952]
[1719156003402,4.11314499,64249.0,64248.0,0.52627952]
[1719156003611,3.89314499,64249.0,64248.0,0.52627952]
[1719156004224,3.58185699,64249.0,64248.0,0.52627952]
[1719156004803,3.27056899,64249.0,64248.0,0.54027952]
[1719156004984,3.29056899,64249.0,64248.0,0.52627952]
[1719156005187,3.27056899,64249.0,64248.0,0.52627952]
[1719156005396,3.80185699,64249.0,64248.0,0.52627952]
[1719156005592,3.80185699,64249.0,64248.0,0.57837952]
[1719156006036,3.80185699,64249.0,64248.0,0.59237952]
[1719156006516,3.60185699,64249.0,64248.0,0.59237952]
[1719156006714,3.80185699,64249.0,64248.0,0.59237952]
[1719156007193,3.60185699,64249.0,64248.0,0.59237952]
[1719156007604,3.80185699,64249.0,64248.0,0.59237952]
[1719156007999,3.80185699,64249.0,64248.0,0.54027952]
[1719156014254,3.60185699,64249.0,64248.0,0.54027952]
[1719156014653,3.91314499,64249.0,64248.0,0.54027952]
[1719156015150,4.11314499,64249.0,64248.0,0.54027952]
[1719156016148,3.89314499,64249.0,64248.0,0.54027952]
[1719156016352,4.11314499,64249.0,64248.0,0.54027952]
[1719156018245,4.13776927,64249.0,64248.0,0.54027952]
[1719156018438,4.11314499,64249.0,64248.0,0.54027952]
[1719156018642,4.13776932,64249.0,64248.0,0.54027952]
[1719156021673,4.13764385,64249.0,64248.0,0.54027952]
[1719156024921,4.13741779,64249.0,64248.0,0.54027952]
[1719156025444,4.13741787,64249.0,64248.0,0.54027952]
[1719156026636,4.13741787,64249.0,64248.0,0.59237952]
[1719156027151,3.93741787,64249.0,64248.0,0.59237952]
[1719156027373,4.13741787,64249.0,64248.0,0.59237952]
[1719156027508,3.91741787,64249.0,64248.0,0.59237952]
[1719156027911,3.89314499,64249.0,64248.0,0.59237952]
[1719156028123,3.91981124,64249.0,64248.0,0.59237952]
[1719156028323,3.60852324,64249.0,64248.0,0.59237952]
[1719156031755,3.62852324,64249.0,64248.0,0.59237952]
[1719156031973,3.82852324,64249.0,64248.0,0.59237952]
[1719156033000,3.80185699,64249.0,64248.0,0.54027952]
[1719156033203,3.82801622,64249.0,64248.0,0.59237952]
[1719156034084,3.82755397,64249.0,64248.0,0.59237952]
[1719156034559,3.82755386,64249.0,64248.0,0.59237952]
[1719156035265,3.62755386,64249.0,64248.0,0.59237952]
[1719156035442,3.60755386,64249.0,64248.0,0.59237952]
[1719156035624,3.31626586,64249.0,64248.0,0.59237952]
[1719156035832,3.51626586,64249.0,64248.0,0.59237952]
[1719156037298,3.51739498,64249.0,64248.0,0.59237952]
[1719156037528,3.25679049,64249.0,64248.0,0.59237952]
[1719156038322,3.56807849,64249.0,64248.0,0.59237952]
[1719156040340,3.5412525,64249.0,64248.0,0.59237952]
[1719156040577,3.56805858,64249.0,64248.0,0.59237952]
[1719156041172,3.56805858,64249.0,64248.0,0.59237956]
[1719156043246,3.5412525,64249.0,64248.0,0.59237956]
[1719156043441,3.56769454,64249.0,64248.0,0.54027956]
[1719156043843,3.97898254,64249.0,64248.0,0.54027956]
[1719156044041,3.66769454,64249.0,64248.0,0.54027956]
[1719156044474,3.7142346,64249.0,64248.0,0.54027956]
[1719156044879,4.0255226,64249.0,64248.0,0.54027956]
[1719156045123,4.02569489,64249.0,64248.0,0.54027956]
[1719156045294,3.97914153,64249.0,64248.0,0.54027956]
[1719156046589,3.97922803,64249.0,64248.0,0.54027956]
[1719156046791,4.04908369,64249.0,64248.0,0.54027956]
[1719156048445,3.97922803,64249.0,64248.0,0.54027956]
[1719156049643,3.97959548,64249.0,64248.0,0.54027956]
[1719156052668,3.9525405,64249.0,64248.0,0.54027956]
[1719156052872,3.97998103,64249.0,64248.0,0.54027956]
[1719156054467,3.98007137,64249.0,64248.0,0.54027956]
[1719156055554,3.46878337,64249.0,64248.0,0.54027956]
[1719156055719,3.39420376,64249.0,64248.0,0.54027956]
[1719156055926,3.14667289,64249.0,64248.0,0.54027956]
[1719156056128,3.17423271,64249.0,64248.0,0.54027956]
[1719156056324,3.39423271,64249.0,64248.0,0.54027956]
[1719156057333,3.19423271,64249.0,64248.0,0.54027956]
[1719156057732,3.39423271,64249.0,64248.0,0.54027956]
[1719156058664,2.76294471,64249.0,64248.0,0.54027956]
[1719156058866,2.59514471,64249.0,64248.0,0.54027956]
[1719156059070,2.69603247,64249.0,64248.0,0.54027956]
[1719156059654,2.49673247,64249.0,64248.0,0.54027956]
[1719156060825,2.34108847,64249.0,64248.0,0.54027956]
[1719156061269,2.31264089,64249.0,64248.0,0.54027956]
[1719156061453,2.34148627,64249.0,64248.0,0.54027956]
[1719156061857,2.34225807,64249.0,64248.0,0.59237956]
[1719156063667,2.34225807,64249.0,64248.0,0.54027956]
[1719156063971,2.34225807,64249.0,64248.0,1.76151156]
[1719156064177,2.34225807,64249.0,64248.0,1.78451156]
[1719156064381,2.34209927,64249.0,64248.0,1.78451156]
[1719156064591,2.34209927,64249.0,64248.0,2.09580456]
[1719156064592,2.21264089,64249.0,64248.0,2.09580456]
[1719156064973,2.21264089,64249.0,64248.0,2.14254049]
[1719156065379,2.21264089,64249.0,64248.0,2.08180456]
[1719156066507,2.21264089,64249.0,64248.0,2.09580456]
[1719156067109,2.21264089,64249.0,64248.0,2.08180456]
[1719156068017,2.21264089,64249.0,64248.0,2.09580456]
[1719156068431,2.21264089,64249.0,64248.0,2.59580456]
[1719156069001,2.21264089,64249.0,64248.0,2.58180456]
[1719156069642,2.21264089,64249.0,64248.0,2.56780456]
[1719156069963,2.21264089,64249.0,64248.0,2.58180456]
[1719156070813,2.21264089,64249.0,64248.0,2.59580456]
[1719156071567,2.21264089,64249.0,64248.0,2.58180456]
[1719156071777,2.21264089,64249.0,64248.0,2.56780456]
[1719156072189,2.21264089,64249.0,64248.0,2.58180456]
[1719156072564,2.21264089,64249.0,64248.0,2.59580456]
[1719156072767,2.21264089,64249.0,64248.0,2.60980456]
[1719156073102,2.21264089,64249.0,64248.0,2.58180456]
[1719156073504,2.21264089,64249.0,64248.0,2.59580456]
[1719156074828,2.21264089,64249.0,64248.0,2.58180456]
[1719156075131,2.21264089,64249.0,64248.0,2.56780456]
[1719156075338,2.21264089,64249.0,64248.0,2.58180456]
[1719156075772,2.21264089,64249.0,64248.0,2.59580456]
[1719156075900,2.21264089,64249.0,64248.0,2.58180456]
[1719156076301,2.21264089,64249.0,64248.0,2.59580456]
[1719156076511,2.21264089,64249.0,64248.0,2.58180456]
[1719156076715,2.21264089,64249.0,64248.0,2.56780456]
[1719156077756,2.21264089,64249.0,64248.0,2.58180456]
[1719156078460,2.21264089,64249.0,64248.0,2.59580456]
[1719156080517,2.21264089,64249.0,64248.0,2.54370456]
[1719156080656,2.21264089,64249.0,64248.0,2.59580456]
[1719156082098,2.21264089,64249.0,64248.0,2.58180456]
[1719156082703,2.21264089,64249.0,64248.0,2.59580456]
[1719156083102,2.21264089,64249.0,64248.0,2.58180456]
[1719156083551,2.21264089,64249.0,64248.0,2.59580456]
[1719156084255,2.21264089,64249.0,64248.0,2.54370456]
[1719156084458,2.21264089,64249.0,64248.0,2.15280456]
[1719156084792,2.21264089,64249.0,64248.0,2.20490456]
[1719156090341,2.21264089,64249.0,64248.0,1.84151156]
[1719156090540,2.98498489,64249.0,64248.0,0.54027956]
[1719156090964,2.63411495,64249.0,64248.0,0.54027956]
[1719156091339,2.85411495,64249.0,64248.0,0.52627956]
[1719156091722,3.00975895,64249.0,64248.0,0.54027956]
[1719156091928,3.00975895,64249.0,64248.0,0.51227956]
[1719156091929,3.29627289,64249.0,64248.0,0.51227956]
[1719156092132,3.63283598,64249.0,64248.0,0.43227956]
[1719156092331,3.63283598,64249.0,64248.0,0.54027956]
[1719156093526,3.63283598,64249.0,64248.0,0.51227956]
[1719156093724,3.63283598,64249.0,64248.0,0.52627956]
[1719156094150,3.63283598,64249.0,64248.0,0.54027956]
[1719156094969,3.10154798,64249.0,64248.0,0.54027956]
[1719156095365,3.10154798,64249.0,64248.0,0.52627956]
[1719156095615,3.10154798,64249.0,64248.0,0.54027956]
[1719156095747,3.32154798,64249.0,64248.0,0.54027956]
[1719156098089,3.32073695,64249.0,64248.0,0.54027956]
[1719156098489,3.29627289,64249.0,64248.0,0.54027956]
[1719156098689,3.32073721,64249.0,64248.0,0.54027956]
[1719156099681,3.63202521,64249.0,64248.0,0.54027956]
[1719156099880,3.32073721,64249.0,64248.0,0.54027956]
[1719156101172,3.63202521,64249.0,64248.0,0.54027956]
[1719156101500,3.32073721,64249.0,64248.0,0.54027956]
[1719156101703,3.63202521,64249.0,64248.0,0.54027956]
[1719156104253,3.60756089,64249.0,64248.0,0.54027956]
[1719156104453,3.63148288,64249.0,64248.0,0.54027956]
[1719156107213,3.63144738,64249.0,64248.0,0.54027956]
[1719156109004,3.6313878,64249.0,64248.0,0.54027956]
[1719156110417,3.94256247,64249.0,64248.0,0.54027956]
[1719156110593,4.04256247,64249.0,64248.0,0.54027956]
[1719156110797,4.04256247,64249.0,64248.0,0.47795156]
[1719156111559,4.05256247,64249.0,64248.0,0.47795156]
[1719156111883,4.04256247,64249.0,64248.0,0.47795156]
[1719156113629,4.01884889,64249.0,64248.0,0.47795156]
[1719156113830,4.04233857,64249.0,64248.0,0.47795156]
[1719156114800,4.05233857,64249.0,64248.0,0.47795156]
[1719156116173,4.05233857,64249.0,64248.0,0.46395156]
[1719156116374,4.05233857,64249.0,64248.0,0.47595156]
[1719156116588,4.02884889,64249.0,64248.0,0.47595156]
[1719156116787,4.05255246,64249.0,64248.0,0.46395156]
[1719156117058,4.05247915,64249.0,64248.0,0.46395156]
[1719156117295,4.05247915,64249.0,64248.0,0.46795156]
[1719156117425,4.05247915,64249.0,64248.0,0.45395156]
[1719156117811,4.05247915,64249.0,64248.0,0.46495156]
[1719156118324,4.05247915,64249.0,64248.0,0.45395156]
[1719156118727,4.05247915,64249.0,64248.0,0.45795156]
[1719156119352,4.46376715,64249.0,64248.0,0.45795156]
[1719156119755,4.52254798,64249.0,64248.0,0.45795156]
[1719156119971,4.51559595,64249.0,64248.0,0.45795156]
[1719156120612,4.57492981,64249.0,64248.0,0.45795156]
[1719156121853,4.57492981,64249.0,64248.0,0.44165156]
[1719156122061,4.51534099,64249.0,64248.0,0.44165156]
[1719156122692,4.46324099,64249.0,64248.0,0.44165156]
[1719156122812,4.57415154,64249.0,64248.0,0.44165156]
[1719156123253,4.6205733,64249.0,64248.0,0.44165156]
[1719156125123,4.57623549,64249.0,64248.0,0.44165156]
[1719156125297,4.6226573,64249.0,64248.0,0.44165156]
[1719156125505,4.57623549,64249.0,64248.0,0.44165156]
[1719156125682,4.62265866,64249.0,64248.0,0.44165156]
[1719156128015,4.55206315,64249.0,64248.0,0.44165156]
[1719156128331,4.57623617,64249.0,64248.0,0.44165156]
[1719156130224,2.206343,64243.0,64242.0,0.000935]
[1719156130423,3.12244228,64243.0,64242.0,0.15349612]
[1719156131159,3.26355788,64243.0,64242.0,0.15349612]
[1719156131352,0.7941,64242.0,64241.0,1e-06]
[1719156131587,3.40045397,64242.0,64241.0,1e-06]
[1719156131780,3.46116977,64242.0,64241.0,1e-06]
[1719156133250,3.60031119,64242.0,64241.0,1e-06]
[1719156133762,3.60546686,64242.0,64241.0,0.001001]
[1719156133997,3.38049385,64242.0,64241.0,0.001001]
[1719156134197,3.45990585,64242.0,64241.0,0.001001]
[1719156134391,3.38049385,64242.0,64241.0,0.001001]
[1719156134714,3.59903814,64242.0,64241.0,0.001001]
[1719156135157,3.45990426,64242.0,64241.0,0.001001]
[1719156135354,3.58544366,64242.0,64241.0,0.001001]
[1719156135995,3.58544366,64242.0,64241.0,0.002001]
[1719156135996,3.58944366,64242.0,64241.0,0.002001]
[1719156136210,3.5884659,64242.0,64241.0,0.002001]
[1719156136417,3.4629265,64242.0,64241.0,0.002001]
[1719156136621,3.5150265,64242.0,64241.0,0.002001]
[1719156137195,3.43659385,64242.0,64241.0,0.002001]
[1719156137413,3.51744294,64242.0,64241.0,0.002001]
[1719156139261,3.46534294,64242.0,64241.0,0.002001]
[1719156139607,3.51744294,64242.0,64241.0,0.002001]
[1719156140229,3.43659385,64242.0,64241.0,0.002001]
[1719156140433,3.63329088,64242.0,64241.0,0.002001]
[1719156140905,3.70888834,64242.0,64241.0,0.002001]
[1719156141324,3.63329088,64242.0,64241.0,0.002001]
[1719156143422,3.63251521,64242.0,64241.0,0.002001]
[1719156143833,3.63251422,64242.0,64241.0,0.002001]
[1719156145074,3.51667884,64242.0,64241.0,0.002001]
[1719156145476,3.63251422,64242.0,64241.0,0.002001]
[1719156145699,3.51667884,64242.0,64241.0,0.002001]
[1719156145905,3.54845179,64242.0,64241.0,0.002001]
[1719156146356,3.4683668,64242.0,64241.0,0.002001]
[1719156146543,3.54799133,64242.0,64241.0,0.002001]
[1719156147559,2.886558,64235.0,64234.0,0.000935]
[1719156147761,2.96059129,64235.0,64234.0,0.000935]
[1719156148064,3.06059129,64235.0,64234.0,0.000935]
[1719156148429,3.11805822,64235.0,64234.0,0.000935]
[1719156149200,3.12005822,64235.0,64234.0,0.000935]
[1719156149399,3.11996506,64235.0,64234.0,0.000935]
[1719156149663,2.91419068,64235.0,64234.0,0.000935]
[1719156149879,2.91996506,64235.0,64234.0,0.000935]
[1719156150275,2.92296506,64235.0,64234.0,0.000935]
[1719156151204,2.92312073,64235.0,64234.0,0.000935]
[1719156151394,2.96944635,64235.0,64234.0,0.000935]
[1719156152184,2.87102073,64235.0,64234.0,0.000935]
[1719156152385,2.84381367,64235.0,64234.0,0.000935]
[1719156152594,2.97220486,64235.0,64234.0,0.000935]
[1719156152855,2.84381367,64235.0,64234.0,0.000935]
[1719156153069,2.90269419,64235.0,64234.0,0.000935]
[1719156153267,2.92587665,64235.0,64234.0,0.000935]
[1719156153789,2.97220639,64235.0,64234.0,0.000935]
[1719156154202,2.97220985,64235.0,64234.0,0.000935]
[1719156155653,2.97487003,64235.0,64234.0,0.000935]
[1719156155888,3.17487003,64235.0,64234.0,0.000935]
[1719156156611,3.12852915,64235.0,64234.0,0.000935]
[1719156158359,3.19804048,64235.0,64234.0,0.000935]
[1719156158771,3.19801458,64235.0,64234.0,0.000935]
[1719156159384,3.0763814,64235.0,64234.0,0.000935]
[1719156159580,3.22119231,64235.0,64234.0,0.000935]
[1719156160266,3.61378829,64235.0,64234.0,1e-06]
[1719156160663,3.55265404,64235.0,64234.0,1e-06]
[1719156160914,3.45994313,64235.0,64234.0,1e-06]
[1719156161727,3.3752754,64235.0,64234.0,1e-06]
[1719156161930,3.67775316,64235.0,64234.0,1e-06]
[1719156162139,3.3752754,64235.0,64234.0,1e-06]
[1719156162455,3.8310103,64235.0,64234.0,1e-06]
[1719156162698,3.67845616,64235.0,64234.0,1e-06]
[1719156163410,3.16710016,64235.0,64234.0,1e-06]
[1719156163605,3.06490922,64235.0,64234.0,1e-06]
[1719156164768,2.97984203,64235.0,64234.0,1e-06]
[1719156164973,3.01341979,64235.0,64234.0,1e-06]
[1719156165203,3.06551979,64235.0,64234.0,1e-06]
[1719156165407,2.94959716,64235.0,64234.0,1e-06]
[1719156166261,3.14959716,64235.0,64234.0,1e-06]
[1719156166476,2.94959716,64235.0,64234.0,1e-06]
[1719156167230,3.14959716,64235.0,64234.0,1e-06]
[1719156167425,2.94959716,64235.0,64234.0,1e-06]
[1719156167675,2.51749716,64235.0,64234.0,1e-06]
[1719156167914,2.68649078,64235.0,64234.0,1e-06]
[1719156169275,2.57048004,64235.0,64234.0,1e-06]
[1719156170818,2.3541366,64235.0,64234.0,1e-06]
[1719156171024,2.3584487,64235.0,64234.0,1e-06]
[1719156171401,2.29532375,64235.0,64234.0,1e-06]
[1719156171625,2.3585506,64235.0,64234.0,1e-06]
[1719156171826,2.33844487,64235.0,64234.0,1e-06]
[1719156172632,2.3391044,64235.0,64234.0,1e-06]
[1719156174135,2.33904017,64235.0,64234.0,1e-06]
[1719156174386,2.4784138,64235.0,64234.0,1e-06]
[1719156175246,2.33904017,64235.0,64234.0,1e-06]
[1719156177298,2.31085782,64235.0,64234.0,1e-06]
[1719156177500,2.33877524,64235.0,64234.0,1e-06]
[1719156178917,2.94487524,64235.0,64234.0,1e-06]
[1719156179142,3.04858462,64235.0,64234.0,1e-06]
[1719156180247,2.85357023,64235.0,64234.0,1e-06]
[1719156180447,3.04227313,64235.0,64234.0,1e-06]
[1719156180651,2.85357023,64235.0,64234.0,1e-06]
[1719156180860,3.04227327,64235.0,64234.0,1e-06]
[1719156181090,1.60500156,64224.0,64223.0,0.08]
[1719156181316,1.8659471,64224.0,64223.0,0.23256112]
[1719156181526,2.0180471,64224.0,64223.0,0.23256112]
[1719156181737,2.2180471,64224.0,64223.0,0.23256112]
[1719156181949,1.77925456,64217.0,64216.0,0.080935]
[1719156182099,1.77925456,64217.0,64216.0,0.23349612]
[1719156182100,1.96582289,64217.0,64216.0,0.23349612]
[1719156182507,1.87925456,64217.0,64216.0,0.23349612]
[1719156182823,1.96488438,64217.0,64216.0,0.23349612]
[1719156183882,2.57098438,64217.0,64216.0,0.23349612]
[1719156184018,2.10446088,64217.0,64216.0,0.23349612]
[1719156184227,2.01698438,64217.0,64216.0,0.61309612]
[1719156184779,2.01714005,64217.0,64216.0,0.61309612]
[1719156185126,2.01914005,64217.0,64216.0,0.61309612]
[1719156185322,2.42724005,64217.0,64216.0,0.23349612]
[1719156185528,2.36528881,64217.0,64216.0,0.23349612]
[1719156185909,2.42062751,64217.0,64216.0,0.23349612]
[1719156186432,2.42662751,64217.0,64216.0,0.23449612]
[1719156186845,2.43262751,64217.0,64216.0,0.23449612]
[1719156187373,2.94407151,64217.0,64216.0,0.001935]
[1719156188079,2.94607151,64217.0,64216.0,0.001935]
[1719156188441,2.94607151,64217.0,64216.0,0.000935]
[1719156188442,2.93112451,64217.0,64216.0,0.000935]
[1719156188845,2.84905423,64217.0,64216.0,0.000935]
[1719156189052,3.03712552,64217.0,64216.0,0.001935]
[1719156189345,3.1764246,64217.0,64216.0,0.001935]
[1719156189560,3.03712552,64217.0,64216.0,0.001935]
[1719156190152,3.03784591,64217.0,64216.0,0.001935]
[1719156190293,3.03784591,64217.0,64209.0,0.000935]
[1719156190294,2.67577956,64210.0,64209.0,0.000935]
[1719156190493,2.90767124,64210.0,64209.0,0.000935]
[1719156191325,2.88643128,64210.0,64209.0,0.000935]
[1719156191694,2.90928962,64210.0,64209.0,0.000935]
[1719156192017,2.91728962,64210.0,64209.0,0.001935]
[1719156192218,3.01728962,64210.0,64209.0,0.001935]
[1719156192897,3.02528962,64210.0,64209.0,0.002935]
[1719156193241,3.03328962,64210.0,64209.0,0.003935]
[1719156193477,3.08728956,64209.0,64208.0,1e-06]
[1719156193684,3.08728956,64209.0,64194.0,0.000935]
[1719156193685,1.14663156,64195.0,64194.0,0.000935]
[1719156193880,2.2141399,64195.0,64194.0,0.000935]
[1719156195178,2.2141399,64195.0,64194.0,0.002935]
[1719156196433,2.19128156,64195.0,64194.0,0.003935]
[1719156196599,2.24338156,64195.0,64194.0,0.003935]
[1719156196925,2.24353723,64195.0,64194.0,0.003935]
[1719156197554,1.87988723,64195.0,64194.0,0.002935]
[1719156197681,1.87988723,64195.0,64194.0,0.15549612]
[1719156197891,1.93198723,64195.0,64194.0,0.15349612]
[1719156198124,1.96044817,64195.0,64194.0,0.15349612]
[1719156198964,1.96544817,64195.0,64194.0,0.15349612]
[1719156199100,1.91334817,64195.0,64194.0,0.15349612]
[1719156199296,1.96544817,64195.0,64194.0,0.15349612]
[1719156199500,2.35034817,64195.0,64194.0,0.15349612]
[1719156199737,2.35034817,64195.0,64194.0,0.000935]
[1719156199967,2.34534817,64195.0,64194.0,0.000935]
[1719156200455,2.35034817,64195.0,64194.0,0.000935]
[1719156200803,2.34534817,64195.0,64194.0,0.000935]
[1719156200999,2.34034817,64195.0,64194.0,0.000935]
[1719156201200,2.34534817,64195.0,64194.0,0.000935]
[1719156201762,2.32188723,64195.0,64194.0,0.000935]
[1719156201963,2.31688723,64195.0,64194.0,0.000935]
[1719156202361,2.77733481,64195.0,64194.0,0.000935]
[1719156202511,3.02726077,64195.0,64194.0,0.000935]
[1719156202872,2.98599137,64195.0,64194.0,0.000935]
[1719156203045,2.99099137,64195.0,64194.0,0.000935]
[1719156204012,2.79099137,64195.0,64194.0,0.000935]
[1719156204219,2.62760663,64195.0,64194.0,0.000935]
[1719156204431,2.67970663,64195.0,64194.0,0.000935]
[1719156205039,1.93115663,64195.0,64194.0,0.000935]
[1719156205263,1.94198723,64195.0,64194.0,0.000935]
[1719156205505,1.88988723,64195.0,64194.0,0.000935]
[1719156205713,1.94198723,64195.0,64194.0,0.000935]
[1719156206435,1.96810445,64195.0,64194.0,0.000935]
[1719156206648,1.91600444,64195.0,64194.0,0.000935]
[1719156206869,1.96810444,64195.0,64194.0,0.000935]
[1719156207160,1.96310444,64195.0,64194.0,0.000935]
[1719156207699,1.96810444,64195.0,64194.0,0.000935]
[1719156208181,1.96310444,64195.0,64194.0,0.000935]
[1719156208685,1.97310444,64195.0,64194.0,0.000935]
[1719156209992,1.97340825,64195.0,64194.0,0.000935]
[1719156210738,1.97340825,64195.0,64194.0,0.15349612]
[1719156211136,1.34565825,64195.0,64194.0,0.54659612]
[1719156213086,1.34629657,64195.0,64194.0,0.54659612]
[1719156213501,1.31923723,64195.0,64194.0,0.54659612]
[1719156213655,1.34614989,64195.0,64194.0,0.54659612]
[1719156213853,1.34114989,64195.0,64194.0,0.54659612]
[1719156214086,1.34214989,64195.0,64194.0,0.55659612]
[1719156214493,1.33314989,64195.0,64194.0,0.55659612]
[1719156214885,1.33314989,64195.0,64194.0,0.54659612]
[1719156215240,1.33114989,64195.0,64194.0,0.54659612]
[1719156215647,1.33114989,64195.0,64194.0,0.54959612]
[1719156215844,1.33114989,64195.0,64194.0,0.55959612]
[1719156216292,1.33090016,64195.0,64194.0,0.55959612]
[1719156216493,1.33090016,64195.0,64194.0,0.54959612]
[1719156218889,1.33090016,64195.0,64194.0,0.53959612]
[1719156219496,1.33084214,64195.0,64194.0,0.53959612]
[1719156222561,1.30423723,64195.0,64194.0,0.53959612]
[1719156222716,1.33080902,64195.0,64194.0,0.53959612]
[1719156222916,1.30423723,64195.0,64194.0,0.53959612]
[1719156223138,1.33080902,64195.0,64194.0,0.53959612]
[1719156224313,1.33087439,64195.0,64194.0,0.53959612]
[1719156225630,1.30423723,64195.0,64194.0,0.53959612]
[1719156225827,1.33088018,64195.0,64194.0,0.53959612]
[1719156226642,1.33088018,64195.0,64194.0,0.36259612]
[1719156226842,1.33088018,64195.0,64194.0,0.14649612]
[1719156226843,1.54828018,64195.0,64194.0,0.14649612]
[1719156227046,2.18572689,64195.0,64194.0,0.14649612]
[1719156227822,2.18572689,64195.0,64194.0,0.14549612]
[1719156228284,2.19072689,64195.0,64194.0,0.14549612]
[1719156228453,2.19072689,64195.0,64194.0,0.14349612]
[1719156228861,2.19572689,64195.0,64194.0,0.14349612]
[1719156229078,2.37252689,64195.0,64194.0,0.14349612]
[1719156229412,1.67965356,64194.0,64193.0,0.000935]
[1719156229616,2.02029322,64194.0,64193.0,0.000935]
[1719156229823,2.08988155,64194.0,64193.0,0.000935]
[1719156230112,2.02029322,64194.0,64193.0,0.000935]
[1719156230497,2.11307767,64194.0,64193.0,0.000935]
[1719156231134,2.11323334,64194.0,64193.0,0.000935]
[1719156231541,2.11723334,64194.0,64193.0,0.000935]
[1719156231720,2.02744889,64194.0,64193.0,0.000935]
[1719156231952,2.02211077,64194.0,64193.0,0.000935]
[1719156232358,2.42661076,64194.0,64193.0,0.000935]
[1719156232568,2.85421257,64194.0,64193.0,0.000935]
[1719156232987,2.73816576,64194.0,64193.0,0.000935]
[1719156234622,2.7245092,64194.0,64193.0,0.000935]
[1719156234823,2.73816576,64194.0,64193.0,0.000935]
[1719156235031,2.65496423,64194.0,64193.0,0.000935]
[1719156235208,2.73731134,64194.0,64193.0,0.000935]
[1719156237110,2.4420182,64194.0,64193.0,0.000935]
[1719156237534,2.5977952,64194.0,64193.0,0.000935]
[1719156238065,2.51544809,64194.0,64193.0,0.000935]
[1719156238266,2.59741393,64194.0,64193.0,0.000935]
[1719156239945,1.36820056,64188.0,64187.0,0.005285]
[1719156240145,1.63639514,64188.0,64187.0,0.15784612]
[1719156240607,1.94813481,64188.0,64187.0,0.15784612]
[1719156240825,1.85518979,64188.0,64187.0,0.15784612]
[1719156241009,1.9249836,64188.0,64187.0,0.15784612]
[1719156241187,1.9474949,64188.0,64187.0,0.16284612]
[1719156241393,1.9249836,64188.0,64187.0,0.16284612]
[1719156241590,1.94724342,64188.0,64187.0,0.16284612]
[1719156242002,2.00521235,64188.0,64187.0,0.16284612]
[1719156242255,1.91227063,64188.0,64187.0,0.16684612]
[1719156242457,2.31677063,64188.0,64187.0,0.16684612]
[1719156243612,2.31532096,64188.0,64187.0,0.16684612]
[1719156246697,2.31549202,64188.0,64187.0,0.16684612]
[1719156247325,2.13029202,64188.0,64187.0,0.16684612]
[1719156248084,1.85889202,64188.0,64187.0,0.16684612]
[1719156248284,1.91099202,64188.0,64187.0,0.16684612]
[1719156249595,1.91179835,64188.0,64187.0,0.16684612]
[1719156252568,1.85405875,64188.0,64187.0,0.16684612]
[1719156252780,1.91033826,64188.0,64187.0,0.16684612]
[1719156252991,1.85823826,64188.0,64187.0,0.16684612]
[1719156253195,1.91033826,64188.0,64187.0,0.16684612]
[1719156255848,1.91106144,64188.0,64187.0,0.16684612]
[1719156256046,1.91106144,64188.0,64187.0,0.33334612]
[1719156256047,1.47630094,64188.0,64187.0,0.33334612]
[1719156256247,1.39569138,64188.0,64187.0,0.33334612]
[1719156256454,1.32599744,64188.0,64187.0,0.33334612]
[1719156256701,1.32599744,64188.0,64187.0,0.54684612]
[1719156257704,1.31599744,64188.0,64187.0,0.54684612]
[1719156257938,1.31599744,64188.0,64187.0,0.55684612]
[1719156258140,1.31599744,64188.0,64187.0,0.54684612]
[1719156258356,1.32599744,64188.0,64187.0,0.54684612]
[1719156258500,1.31599744,64188.0,64187.0,0.55684612]
[1719156258707,1.31831887,64188.0,64187.0,0.55684612]
[1719156259275,1.31825236,64188.0,64187.0,0.55684612]
[1719156259483,1.37778131,64188.0,64187.0,0.55684612]
[1719156259713,1.06619731,64188.0,64187.0,0.55684612]
[1719156259930,0.59508436,64188.0,64187.0,0.55684612]
[1719156260147,0.64154984,64188.0,64187.0,0.55684612]
[1719156260363,0.64155005,64188.0,64187.0,0.55684612]
[1719156260568,0.59508436,64188.0,64187.0,0.55684612]
[1719156261645,0.57118823,64188.0,64187.0,0.55684612]
[1719156261860,0.59487916,64188.0,64187.0,0.55684612]
[1719156262069,0.64134954,64188.0,64187.0,0.55684612]
[1719156263381,0.5912226,64188.0,64187.0,0.55684612]
[1719156263577,0.28329516,64188.0,64187.0,0.55684612]
[1719156263825,0.2796386,64188.0,64187.0,0.55684612]
[1719156264625,0.2804886,64188.0,64187.0,0.55684612]
[1719156265049,0.25679767,64188.0,64187.0,0.55684612]
[1719156265234,0.28101909,64188.0,64187.0,0.55684612]
[1719156266190,0.12522709,64188.0,64187.0,0.55684612]
[1719156267041,0.12522709,64188.0,64187.0,0.60894612]
[1719156267248,0.02522709,64188.0,64187.0,0.60894612]
[1719156267985,0.00100567,64188.0,64187.0,0.60894612]
[1719156268187,0.02548447,64188.0,64187.0,0.60894612]
[1719156268384,0.10100567,64188.0,64187.0,0.60894612]
[1719156268528,0.1254844,64188.0,64187.0,0.60894612]
[1719156268946,0.1254844,64188.0,64187.0,0.60394612]
[1719156269151,0.0254844,64188.0,64187.0,0.59994612]
[1719156269349,0.0264844,64188.0,64187.0,0.73394612]
[1719156269584,0.0264844,64188.0,64187.0,1.22132912]
[1719156269744,0.00200567,64188.0,64187.0,1.21132912]
[1719156270533,0.00200567,64188.0,64187.0,1.22132912]
[1719156270753,0.00200567,64188.0,64187.0,1.21132912]
[1719156271896,0.00200567,64188.0,64187.0,1.22132912]
[1719156272239,0.00200567,64188.0,64187.0,1.53291812]
[1719156272998,0.00200567,64188.0,64187.0,1.52291812]
[1719156273272,0.00100567,64188.0,64187.0,1.51191812]
[1719156273446,0.00200567,64188.0,64187.0,1.53591812]
[1719156273864,0.00200567,64188.0,64187.0,1.73226156]
[1719156273996,0.00200567,64188.0,64187.0,1.72226156]
[1719156274414,0.00200567,64188.0,64187.0,1.52591812]
[1719156274753,0.00200567,64188.0,64187.0,1.53991812]
[1719156274993,0.00200567,64188.0,64187.0,1.73626156]
[1719156275761,0.00200567,64188.0,64187.0,1.48781812]
[1719156276175,0.00200567,64188.0,64187.0,1.53991812]
[1719156276753,0.00200567,64188.0,64187.0,1.48781812]
[1719156276950,0.00200567,64188.0,64187.0,1.53991812]
[1719156277631,0.00200567,64188.0,64187.0,2.04785056]
[1719156278872,0.00200567,64188.0,64187.0,1.85150712]
[1719156279934,0.00200567,64188.0,64187.0,1.79940712]
[1719156280154,0.00200567,64188.0,64187.0,1.85150712]
[1719156282341,0.00200567,64188.0,64187.0,1.16622912]
[1719156282488,0.00200567,64188.0,64187.0,1.53991812]